bitfinex/quotes_ETHUSD_20250626
["timestamp","ask_amount","ask_price","bid_price","bid_amount"]
[1750940207568,0.374,2446.7,2446.4,4.087591]
[1750940207752,0.374,2446.7,2446.2,12.77590046]
[1750940207950,0.374,2446.7,2446.4,4.08762195]
[1750940208277,0.374,2446.7,2446.5,4.08743058]
[1750940208471,0.17,2446.7,2446.4,4.08762195]
[1750940208678,0.17,2446.7,2446.5,4.08733496]
[1750940208894,0.17,2446.7,2446.6,4.08730483]
[1750940209466,0.17,2446.7,2446.5,4.08739185]
[1750940209865,0.17,2446.7,2446.6,4.08730483]
[1750940213391,0.17,2446.7,2446.6,10.80930483]
[1750940213604,0.17,2446.7,2446.6,11.58480483]
[1750940216059,0.17,2446.7,2446.6,4.08730483]
[1750940216264,0.17,2446.7,2446.6,10.80830483]
[1750940217212,0.17,2446.7,2446.6,4.08730483]
[1750940217415,0.17,2446.8,2446.6,10.80730483]
[1750940217991,0.17,2446.8,2446.7,4.08713777]
[1750940219398,0.17,2446.8,2446.6,10.80723067]
[1750940219586,0.17,2446.8,2446.6,10.80723046]
[1750940219892,0.17,2446.8,2446.7,4.08713777]
[1750940220892,0.17,2446.8,2446.6,10.80721473]
[1750940222973,0.17,2446.8,2446.7,4.08713777]
[1750940223178,0.17,2446.8,2446.6,10.80723365]
[1750940224101,0.17,2446.8,2446.7,4.08713777]
[1750940224884,0.17,2446.8,2446.6,10.80721966]
[1750940225897,0.17,2446.8,2446.6,6.72]
[1750940226195,0.55,2446.6,2446.3,0.204]
[1750940226405,0.989,2446.5,2446.2,4.08794645]
[1750940228613,0.989,2446.5,2446.1,11.0100541]
[1750940228807,0.989,2446.5,2446.2,4.08795694]
[1750940229602,0.989,2446.5,2446.1,0.204]
[1750940229896,0.204,2446.4,2446.1,6.922]
[1750940230500,0.204,2446.4,2446.1,11.01012395]
[1750940230866,0.204,2446.4,2446.1,6.922]
[1750940231069,0.17,2446.3,2446.0,6.718]
[1750940231267,0.7916,2446.2,2446.0,10.80629635]
[1750940232291,0.7916,2446.2,2446.0,6.718]
[1750940233191,0.7916,2446.2,2446.0,10.8063017]
[1750940233511,0.7916,2446.2,2446.0,10.80621897]
[1750940234010,0.7916,2446.2,2446.0,6.718]
[1750940234516,0.17,2446.1,2445.4,1.757]
[1750940234843,7.22314616,2446.3,2445.3,0.8014]
[1750940234844,0.55,2445.9,2445.3,0.204]
[1750940235125,0.204,2445.5,2445.1,4.08966204]
[1750940235300,0.17,2445.4,2445.3,4.08947777]
[1750940237218,0.17,2445.4,2445.2,4.08962623]
[1750940237422,0.17,2445.4,2445.0,8.678]
[1750940237627,0.17,2445.4,2445.0,12.76796566]
[1750940238327,0.17,2445.4,2445.0,8.678]
[1750940238497,0.17,2445.4,2445.0,1.961]
[1750940238694,0.9609,2445.3,2445.0,8.474]
[1750940239301,0.17,2445.2,2445.0,1.757]
[1750940239498,0.204,2445.1,2445.0,1.757]
[1750940240205,0.204,2445.1,2445.0,5.84697955]
[1750940240803,0.204,2445.1,2445.0,1.757]
[1750940241126,0.204,2445.1,2445.0,5.84697955]
[1750940242130,0.204,2445.1,2445.0,1.757]
[1750940244009,0.374,2445.1,2445.0,1.757]
[1750940245562,1.3404,2445.0,2444.7,0.204]
[1750940245702,1.3404,2445.0,2443.3,4.09277452]
[1750940245703,0.55,2444.5,2443.6,0.7816]
[1750940245907,0.55,2444.2,2443.6,4.09221484]
[1750940246215,0.55,2444.2,2443.6,10.81027709]
[1750940246533,0.55,2444.2,2443.7,4.09198996]
[1750940246744,0.55,2444.2,2443.8,10.809881]
[1750940246902,0.55,2444.2,2443.8,6.718]
[1750940248151,0.55,2444.2,2443.8,10.80996066]
[1750940248825,0.7904,2444.3,2443.9,4.09170718]
[1750940249032,0.7904,2444.3,2443.8,10.80990076]
[1750940249337,0.55,2444.2,2443.8,6.718]
[1750940249838,0.17,2444.1,2443.8,10.80986695]
[1750940250236,0.17,2444.1,2443.9,4.09180947]
[1750940250812,0.17,2444.1,2443.8,10.80993116]
[1750940251136,0.17,2444.1,2443.9,4.09169671]
[1750940251312,0.17,2444.1,2443.8,10.80989625]
[1750940251519,0.17,2444.1,2443.9,4.09178584]
[1750940252839,0.17,2444.1,2443.8,10.80994423]
[1750940253042,0.17,2444.1,2443.8,6.718]
[1750940253920,0.17,2444.1,2443.7,10.81108029]
[1750940254143,0.17,2444.1,2443.7,6.719]
[1750940254345,0.17,2444.1,2443.7,10.81114834]
[1750940254806,0.17,2444.1,2443.8,4.09197521]
[1750940255010,0.17,2444.1,2443.9,4.09176819]
[1750940255737,0.204,2444.0,2443.8,4.09197521]
[1750940255941,0.7904,2444.3,2444.1,4.09138177]
[1750940256236,0.204,2444.2,2444.1,4.09138177]
[1750940256617,1.3463,2444.5,2444.2,4.09126631]
[1750940256824,0.374,2444.4,2444.2,4.09126631]
[1750940257214,0.374,2444.4,2444.1,4.09147444]
[1750940257949,0.374,2444.4,2444.2,4.09130771]
[1750940258931,0.374,2444.4,2444.1,4.09135654]
[1750940259234,0.374,2444.4,2444.3,4.09115084]
[1750940259438,0.374,2444.4,2444.2,4.09122249]
[1750940259617,0.374,2444.4,2444.2,4.09116025]
[1750940259820,0.374,2444.4,2444.1,4.09140672]
[1750940261143,0.374,2444.4,2444.2,4.09129359]
[1750940261723,0.17,2444.3,2444.2,4.09129359]
[1750940264245,0.17,2444.3,2444.2,4.29529359]
[1750940265037,0.17,2444.3,2444.2,5.05739359]
[1750940267639,0.17,2444.6,2444.5,4.09081611]
[1750940267838,0.17,2444.6,2444.5,10.80881611]
[1750940268366,0.17,2444.6,2444.5,6.718]
[1750940269024,0.17,2444.6,2444.5,10.80881611]
[1750940269425,0.17,2444.7,2444.6,4.09064877]
[1750940271672,0.17,2444.7,2444.5,10.8087221]
[1750940271962,0.17,2444.7,2444.6,4.09064877]
[1750940275566,0.17,2444.7,2444.6,4.87154877]
[1750940279283,0.17,2444.7,2444.6,4.09064877]
[1750940279472,0.17,2444.9,2444.5,8.678]
[1750940279672,0.17,2444.9,2444.7,4.09040631]
[1750940279893,0.17,2444.9,2444.8,10.80531413]
[1750940281797,0.17,2444.9,2444.8,11.00931413]
[1750940282089,0.7992,2445.9,2445.3,4.08947777]
[1750940282392,0.374,2445.8,2445.6,4.08897201]
[1750940283188,0.374,2445.8,2445.5,4.08906301]
[1750940283387,0.17,2445.8,2445.5,6.714]
[1750940283685,0.204,2445.6,2445.5,6.714]
[1750940283887,0.7706,2445.5,2445.4,6.714]
[1750940284479,0.7706,2445.5,2445.3,4.08944812]
[1750940284785,0.7706,2445.5,2445.3,10.80344812]
[1750940285289,0.17,2445.4,2445.3,10.80344812]
[1750940288390,0.17,2445.4,2445.2,0.204]
[1750940288607,0.17,2445.4,2445.3,6.712]
[1750940288897,0.374,2445.4,2445.3,6.712]
[1750940290586,0.374,2445.4,2445.1,6.712]
[1750940290888,0.204,2445.2,2445.1,6.712]
[1750940291077,0.204,2445.2,2444.8,0.204]
[1750940291078,0.9939,2445.2,2445.0,4.08992984]
[1750940291279,0.17,2445.1,2445.0,10.80192984]
[1750940294305,0.17,2445.1,2444.8,0.204]
[1750940294510,0.17,2445.1,2444.6,0.811]
[1750940294511,0.374,2445.1,2444.9,6.711]
[1750940294880,0.374,2445.1,2444.9,10.80111617]
[1750940295483,0.374,2445.1,2444.9,6.711]
[1750940296010,0.374,2445.1,2444.9,10.80112759]
[1750940296814,0.374,2445.1,2444.7,1.752]
[1750940296975,0.374,2445.1,2444.7,5.84240127]
[1750940297178,0.374,2445.1,2444.7,8.463]
[1750940298077,0.72,2445.0,2444.7,1.752]
[1750940298310,0.204,2444.8,2444.7,1.752]
[1750940298514,1.0013,2444.8,2444.6,10.80164545]
[1750940299222,1.0013,2444.8,2444.7,4.09048144]
[1750940300186,1.0013,2444.8,2444.6,10.80155873]
[1750940302521,1.0013,2444.8,2444.7,4.09048144]
[1750940302725,0.204,2444.8,2444.7,4.09048144]
[1750940303092,0.374,2444.8,2444.7,4.09048144]
[1750940305795,0.374,2444.8,2444.6,6.711]
[1750940306205,0.374,2444.8,2444.7,4.09048144]
[1750940307712,0.17,2444.8,2444.7,4.09048144]
[1750940309020,0.17,2444.8,2444.6,11.00551726]
[1750940309021,0.17,2445.2,2445.1,4.08981227]
[1750940314627,0.17,2445.2,2444.9,11.60302917]
[1750940314628,0.17,2445.2,2445.0,4.08989568]
[1750940315004,0.17,2445.4,2445.0,4.08989568]
[1750940315200,0.782,2445.2,2444.6,0.7789]
[1750940315404,0.55,2445.1,2444.6,10.79750515]
[1750940315926,0.55,2445.1,2444.7,4.09047875]
[1750940316639,0.55,2445.1,2444.9,4.09006406]
[1750940317005,0.55,2445.1,2444.6,6.707]
[1750940317206,0.55,2445.1,2444.9,4.09004304]
[1750940317505,0.782,2445.2,2444.6,7.4639]
[1750940317819,0.782,2445.2,2444.9,4.09004975]
[1750940318145,0.782,2445.2,2444.9,4.0900753]
[1750940318347,0.55,2445.1,2444.8,4.09021771]
[1750940318543,0.55,2445.1,2444.9,4.09014141]
[1750940318708,0.55,2445.1,2444.8,4.09019634]
[1750940319222,0.204,2445.0,2444.8,4.09019634]
[1750940320839,0.17,2444.9,2444.8,4.09019634]
[1750940322402,0.17,2444.9,2444.7,10.79638947]
[1750940323035,0.204,2444.8,2444.7,10.79638947]
[1750940323255,0.204,2444.8,2444.7,6.706]
[1750940323432,0.55,2444.7,2444.3,4.75956117]
[1750940323639,0.204,2444.4,2444.3,0.66853448]
[1750940323944,0.204,2444.4,2444.3,7.37453448]
[1750940324513,0.204,2444.4,2444.3,11.46568532]
[1750940324836,0.204,2444.4,2444.3,12.21878532]
[1750940325039,1.78228506,2445.3,2444.3,8.12763448]
[1750940325213,0.55,2444.9,2444.6,4.09064475]
[1750940325412,0.204,2444.7,2444.6,10.79664475]
[1750940327830,0.204,2444.7,2444.6,6.706]
[1750940329732,0.374,2444.7,2444.6,6.706]
[1750940329931,0.7917,2444.6,2444.3,6.50854865]
[1750940330145,0.7917,2444.6,2444.3,4.75954865]
[1750940330455,0.7917,2444.6,2444.4,6.705]
[1750940330664,0.72,2444.5,2444.0,10.016]
[1750940330973,0.55,2444.1,2443.8,4.09190519]
[1750940331257,0.17,2444.0,2443.7,10.79705922]
[1750940331438,0.17,2444.0,2443.6,6.705]
[1750940331439,0.55,2443.9,2443.6,6.705]
[1750940331609,0.204,2443.8,2443.6,6.705]
[1750940332109,0.72,2443.7,2443.5,6.705]
[1750940332310,0.17,2443.7,2443.6,4.0923228]
[1750940334456,0.17,2443.7,2443.5,10.79749027]
[1750940334642,0.204,2443.6,2443.5,10.79749027]
[1750940334814,0.374,2443.6,2443.5,10.79749027]
[1750940335927,0.17,2443.6,2443.5,10.79749027]
[1750940338769,0.17,2443.7,2443.6,4.0923228]
[1750940339167,0.17,2443.7,2443.6,4.8807228]
[1750940340574,0.17,2443.7,2443.6,4.0923228]
[1750940340781,0.374,2443.7,2443.6,10.7973228]
[1750940342067,0.55,2443.6,2443.3,4.09272913]
[1750940342231,0.204,2443.5,2443.3,10.79772913]
[1750940342631,0.204,2443.5,2443.4,4.09265777]
[1750940343578,0.204,2443.5,2443.4,10.79765777]
[1750940343748,0.204,2443.5,2443.4,4.09265777]
[1750940344550,0.374,2443.5,2443.4,4.09265777]
[1750940346838,0.374,2443.5,2443.3,10.79775389]
[1750940347038,0.374,2443.5,2443.4,4.09265777]
[1750940347267,0.17,2443.4,2443.1,9.812]
[1750940347470,0.204,2443.2,2443.1,6.704]
[1750940348281,0.204,2443.2,2443.1,10.79716032]
[1750940348598,0.204,2443.2,2443.1,6.705]
[1750940349082,0.204,2443.2,2442.9,5.84349478]
[1750940349083,0.204,2443.2,2443.0,6.704]
[1750940349295,0.17,2443.1,2443.0,10.79732787]
[1750940350058,0.17,2443.1,2443.0,6.704]
[1750940350268,0.17,2443.1,2442.9,10.79740585]
[1750940350484,0.17,2443.1,2443.0,4.09332787]
[1750940351195,0.374,2443.1,2443.0,4.09332787]
[1750940352813,0.374,2443.1,2443.0,12.33957403]
[1750940352814,0.17,2443.1,2443.0,12.33957403]
[1750940353125,0.7804,2444.1,2443.8,4.09191066]
[1750940353283,0.17,2443.8,2443.6,6.704]
[1750940353483,0.204,2443.7,2443.6,10.7962918]
[1750940354122,0.204,2443.7,2443.6,6.704]
[1750940354311,0.9911,2443.7,2443.3,0.204]
[1750940354510,0.374,2443.6,2443.5,6.704]
[1750940354711,0.374,2443.6,2443.5,10.79649028]
[1750940355834,0.374,2443.6,2443.5,6.704]
[1750940356129,0.374,2443.6,2443.5,10.79649028]
[1750940356286,0.374,2443.6,2443.5,6.704]
[1750940356493,0.374,2443.6,2443.5,10.79649028]
[1750940356819,0.374,2443.6,2443.5,4.09249028]
[1750940357116,0.374,2443.6,2443.5,10.79649028]
[1750940358927,0.17,2443.6,2443.5,10.79649028]
[1750940359239,0.204,2443.7,2443.6,4.0923228]
[1750940359537,0.204,2443.9,2443.7,4.09204555]
[1750940359890,0.204,2443.9,2443.8,4.09198788]
[1750940360115,0.204,2443.9,2443.8,3.92198788]
[1750940361822,0.204,2443.9,2443.8,6.703]
[1750940362047,0.9961,2443.9,2443.7,6.703]
[1750940362230,0.9961,2443.9,2443.8,4.09198788]
[1750940362430,0.204,2443.9,2443.8,4.09198788]
[1750940363156,0.204,2443.9,2443.7,10.79508154]
[1750940363654,0.204,2443.9,2443.7,6.703]
[1750940364964,0.204,2443.9,2443.7,10.79514218]
[1750940365961,0.204,2443.9,2443.7,6.703]
[1750940367458,0.204,2443.9,2443.6,10.79427565]
[1750940367661,0.204,2443.9,2443.7,4.09213037]
[1750940368349,0.204,2443.9,2443.7,4.09208409]
[1750940370767,0.204,2443.9,2443.6,10.79423899]
[1750940371159,0.204,2443.9,2443.6,6.702]
[1750940371368,0.55,2444.1,2443.2,4.09289039]
[1750940371673,0.204,2443.4,2443.3,6.701]
[1750940372365,0.204,2443.4,2443.3,4.09282527]
[1750940372872,0.204,2443.8,2443.7,4.09203711]
[1750940379172,0.204,2443.8,2443.5,10.7924213]
[1750940379370,0.204,2443.8,2443.6,4.09223174]
[1750940379566,0.204,2443.8,2443.7,4.09215533]
[1750940381256,0.204,2443.8,2443.6,4.09223385]
[1750940381776,0.204,2443.8,2443.4,4.09253465]
[1750940381957,0.204,2443.6,2443.5,10.79148046]
[1750940382882,0.204,2443.6,2443.5,6.699]
[1750940383751,0.204,2443.6,2443.3,5.83967718]
[1750940383752,0.204,2443.6,2443.3,6.699]
[1750940384054,0.204,2443.4,2443.3,6.699]
[1750940384768,0.204,2443.4,2443.2,4.09286812]
[1750940385080,0.7582,2443.3,2443.0,1.747]
[1750940385285,0.204,2443.2,2442.7,0.204]
[1750940385579,0.204,2443.2,2442.7,10.99573624]
[1750940385967,0.204,2443.2,2442.8,4.09366018]
[1750940386552,0.204,2443.2,2442.9,4.09346493]
[1750940386890,0.754,2443.2,2443.1,4.09316032]
[1750940387386,0.754,2443.2,2443.0,4.09324265]
[1750940387949,0.204,2443.2,2443.1,4.09316032]
[1750940388185,0.204,2443.2,2443.0,4.922346]
[1750940388494,0.204,2443.2,2443.0,10.791246]
[1750940389880,0.204,2443.2,2443.1,4.09316032]
[1750940391186,0.204,2443.2,2443.0,4.09321494]
[1750940391373,0.9641,2443.2,2443.0,10.79121494]
[1750940392081,0.9641,2443.2,2442.9,10.79143475]
[1750940392288,0.9641,2443.2,2443.0,4.09331498]
[1750940392581,0.9641,2443.2,2443.0,4.09323486]
[1750940392887,0.9641,2443.2,2443.1,4.09316032]
[1750940393087,0.9641,2443.2,2443.0,4.09326683]
[1750940393285,0.204,2443.2,2443.1,4.09316032]
[1750940393882,0.204,2443.2,2443.0,4.09323914]
[1750940395262,0.204,2443.2,2442.9,4.09341096]
[1750940395590,0.7723,2443.4,2442.8,10.7915988]
[1750940395591,0.204,2443.0,2442.8,10.7915988]
[1750940396670,0.204,2443.0,2442.6,6.698]
[1750940396889,0.204,2443.0,2442.9,4.09349543]
[1750940397490,0.1997258,2443.0,2442.9,4.09349543]
[1750940397691,0.803,2443.4,2442.9,4.09349543]
[1750940397692,0.54786449,2443.3,2443.1,4.09313341]
[1750940397902,0.54786449,2443.3,2443.2,4.09299279]
[1750940398072,1.744,2443.8,2443.2,4.09299279]
[1750940398487,10.0,2443.7,2443.2,4.09299279]
[1750940398671,1.27180187,2443.6,2443.2,4.09299279]
[1750940398994,0.204,2443.2,2443.1,4.09310579]
[1750940399777,0.204,2443.2,2443.0,4.09324656]
[1750940400168,0.55,2443.5,2443.0,4.09324656]
[1750940400369,0.204,2443.1,2443.0,4.09324656]
[1750940402789,0.204,2443.1,2442.9,10.7904033]
[1750940403395,0.204,2443.1,2443.0,4.09332787]
[1750940404297,0.204,2443.1,2442.9,6.697]
[1750940404298,0.204,2443.1,2442.9,10.7904021]
[1750940405381,0.204,2443.1,2443.0,4.09332787]
[1750940406669,0.204,2443.1,2442.9,10.79038397]
[1750940407210,0.55,2443.0,2442.7,0.204]
[1750940407371,0.204,2442.8,2442.6,6.696]
[1750940407682,0.204,2442.7,2442.6,10.78994305]
[1750940410384,0.204,2442.7,2442.6,4.09394305]
[1750940410582,0.204,2442.7,2442.4,4.09432113]
[1750940410895,0.204,2442.7,2442.5,10.79005266]
[1750940412271,0.829,2442.5,2442.3,1.66693882]
[1750940412582,0.204,2442.4,2442.1,4.09473325]
[1750940412803,0.204,2442.3,2442.1,4.09473325]
[1750940413704,0.204,2442.3,2442.0,7.4576]
[1750940413879,0.204,2442.3,2442.2,4.09466874]
[1750940414074,0.829,2442.5,2442.0,4.09499525]
[1750940414400,0.204,2442.1,2442.0,10.78999525]
[1750940414819,0.7848,2443.1,2442.2,0.7605]
[1750940415002,0.204,2443.0,2442.9,4.09342363]
[1750940415302,0.204,2443.0,2442.9,4.57811599]
[1750940415501,0.204,2443.0,2442.9,4.09342363]
[1750940421542,0.55,2443.5,2443.2,4.09285592]
[1750940421903,0.7807,2443.6,2443.3,4.09278053]
[1750940421904,0.55,2443.6,2443.3,4.09278053]
[1750940422088,0.55,2443.8,2443.3,4.09278053]
[1750940422290,0.754,2443.3,2443.2,4.09289256]
[1750940422591,0.754,2443.3,2443.1,10.78707112]
[1750940422592,0.204,2443.2,2443.1,10.78707112]
[1750940423641,0.204,2443.2,2442.9,13.33205452]
[1750940423845,0.204,2443.2,2443.1,4.09316032]
[1750940425591,0.8006,2443.5,2443.1,0.99062642]
[1750940425796,0.7606,2443.7,2443.5,4.09245331]
[1750940426109,0.204,2443.3,2443.2,4.09297215]
[1750940426719,0.204,2443.3,2443.1,4.09309059]
[1750940426919,1.0121,2443.3,2443.1,10.78609059]
[1750940428235,1.0121,2443.3,2443.2,4.09299279]
[1750940428439,1.0121,2443.3,2443.1,10.78608]
[1750940428636,1.0121,2443.3,2443.0,10.78623858]
[1750940429009,1.0121,2443.3,2443.1,4.09311911]
[1750940430826,1.0121,2443.3,2443.0,10.78624097]
[1750940431259,1.0121,2443.3,2443.1,4.09312215]
[1750940431612,1.0121,2443.3,2443.2,4.09299279]
[1750940431949,0.204,2443.3,2443.2,4.09299279]
[1750940435721,0.204,2443.3,2443.1,4.0931052]
[1750940435918,0.204,2443.3,2443.2,4.09299279]
[1750940436122,0.204,2443.3,2443.1,4.09306271]
[1750940438243,0.204,2443.3,2443.2,4.09299279]
[1750940439252,0.204,2443.3,2443.1,4.0930841]
[1750940440056,0.204,2443.3,2443.0,10.78625228]
[1750940440253,0.55,2443.2,2442.8,0.802]
[1750940440456,0.204,2442.9,2442.8,10.7846416]
[1750940440658,0.204,2442.9,2442.7,4.09376653]
[1750940440958,0.204,2442.9,2442.5,6.691]
[1750940441129,0.55,2443.0,2442.5,4.09407438]
[1750940441332,0.204,2442.7,2442.4,4.9048125]
[1750940441532,0.204,2442.7,2442.5,4.09416142]
[1750940441944,0.204,2442.7,2442.6,4.09399819]
[1750940442153,0.204,2442.7,2442.5,4.09410984]
[1750940443228,0.204,2442.7,2442.4,11.59584064]
[1750940443447,0.204,2442.7,2442.4,10.78524064]
[1750940443646,0.204,2442.7,2442.4,10.78424064]
[1750940444361,0.204,2442.7,2442.5,4.0941526]
[1750940444762,0.204,2442.7,2442.4,10.78425059]
[1750940445133,0.7635,2442.6,2442.4,4.0942218]
[1750940445327,0.204,2442.6,2442.5,4.09416581]
[1750940448242,1.3743,2443.0,2442.7,4.09372228]
[1750940449071,1.3743,2443.0,2442.8,4.0936476]
[1750940449476,0.204,2442.8,2442.7,4.09372185]
[1750940449672,0.7919,2443.2,2442.8,4.09355848]
[1750940449972,0.204,2443.0,2442.8,4.09355857]
[1750940450482,0.204,2443.0,2442.8,4.09352121]
[1750940450657,0.204,2443.0,2442.8,4.09358385]
[1750940451550,0.204,2443.0,2442.9,4.09349543]
[1750940452153,0.204,2443.0,2442.8,4.093542]
[1750940453677,0.204,2443.0,2442.7,4.09376438]
[1750940454398,0.204,2443.0,2442.6,4.29792378]
[1750940454572,0.55,2442.9,2442.5,6.69]
[1750940454881,0.204,2442.8,2442.6,4.0938979]
[1750940456493,0.204,2442.8,2442.7,4.09383059]
[1750940461090,0.204,2443.0,2442.7,0.757]
[1750940461260,0.204,2443.2,2443.0,4.09320858]
[1750940461464,0.204,2443.2,2443.1,4.09316032]
[1750940461859,0.204,2443.7,2443.1,14.95652794]
[1750940462083,0.204,2443.7,2443.4,4.09253681]
[1750940462283,0.204,2443.7,2443.5,4.09245659]
[1750940462484,0.7689,2443.5,2443.3,4.09271411]
[1750940462767,0.7689,2443.5,2443.0,10.98626317]
[1750940462768,0.9729,2443.5,2443.0,10.98626317]
[1750940462964,0.9729,2443.5,2443.2,4.09293088]
[1750940463690,0.9729,2443.5,2443.1,4.09307994]
[1750940463896,0.55,2443.4,2442.6,0.7717]
[1750940464098,0.204,2443.1,2442.9,4.09348333]
[1750940464484,0.204,2443.1,2443.0,4.09332787]
[1750940465200,0.204,2443.1,2442.9,4.09340731]
[1750940465711,0.204,2443.1,2442.8,4.09359681]
[1750940466288,0.55,2443.2,2442.7,4.0937768]
[1750940466481,0.204,2443.0,2442.7,4.0937768]
[1750940467605,1.0078,2443.0,2442.7,4.0937768]
[1750940469602,1.0078,2443.0,2442.6,4.09392159]
[1750940470421,1.0078,2443.0,2442.5,4.29809007]
[1750940470579,0.204,2442.8,2442.5,4.09409007]
[1750940470910,0.204,2442.8,2442.6,4.09398115]
[1750940471313,0.204,2442.8,2442.4,13.54308041]
[1750940471314,0.204,2442.8,2442.7,4.09383059]
[1750940471510,0.204,2442.8,2442.6,4.09390145]
[1750940471688,0.8288,2442.7,2442.5,4.09405049]
[1750940471894,0.8288,2442.7,2442.6,4.09399819]
[1750940472118,0.204,2442.8,2442.6,4.09399819]
[1750940473190,0.204,2442.8,2442.7,4.09383059]
[1750940473516,0.204,2442.8,2442.6,4.09392108]
[1750940474204,0.204,2442.8,2442.6,0.8187]
[1750940474390,0.204,2442.8,2442.6,4.09391254]
[1750940474786,0.204,2442.8,2442.7,4.09383059]
[1750940474991,0.204,2442.9,2442.7,4.09383059]
[1750940475592,0.204,2442.9,2442.6,4.09392994]
[1750940475928,0.204,2442.9,2442.8,4.093663]
[1750940476288,0.204,2442.9,2442.7,4.09375339]
[1750940477027,0.204,2442.9,2442.7,4.09374149]
[1750940479203,0.204,2442.9,2442.6,4.09397749]
[1750940479500,0.204,2442.9,2442.7,4.09382383]
[1750940481327,0.204,2442.9,2442.6,4.09393912]
[1750940482128,0.204,2442.9,2442.7,4.09381836]
[1750940483693,0.204,2442.9,2442.8,4.093663]
[1750940485433,0.204,2442.9,2442.7,4.09373403]
[1750940485597,0.204,2442.9,2442.6,4.0939061]
[1750940486090,0.204,2442.9,2442.7,4.09381824]
[1750940486323,0.204,2442.9,2442.8,4.093663]
[1750940486728,0.204,2442.9,2442.7,4.09374448]
[1750940486926,0.204,2442.9,2442.6,4.0939518]
[1750940487438,0.55,2443.1,2442.4,4.09422139]
[1750940487602,0.204,2442.7,2442.5,4.09414969]
[1750940488101,0.55,2442.5,2442.0,6.04336467]
[1750940488300,0.204,2442.4,2442.2,4.09464994]
[1750940488917,0.204,2442.4,2442.0,1.18618243]
[1750940489141,0.791,2442.2,2442.0,1.18618243]
[1750940489435,0.204,2442.0,2441.8,4.09531396]
[1750940490109,0.204,2442.0,2441.9,4.09517179]
[1750940490843,1.0224,2442.4,2442.0,4.09491175]
[1750940491143,1.0224,2442.4,2442.1,4.09482256]
[1750940491339,1.0224,2442.4,2442.2,4.09461166]
[1750940491499,0.204,2442.4,2442.2,4.09466874]
[1750940492726,0.204,2442.4,2442.0,4.09493065]
[1750940492912,1.3228,2442.3,2442.0,4.09499382]
[1750940493246,1.3228,2442.3,2441.7,10.78242201]
[1750940493528,0.204,2442.0,2441.9,4.09517179]
[1750940493733,0.204,2442.0,2441.8,4.09525401]
[1750940494035,0.204,2442.0,2441.9,4.09517179]
[1750940496715,0.55,2442.4,2442.1,4.09474915]
[1750940497019,0.204,2442.2,2442.0,4.09491625]
[1750940497205,0.204,2442.2,2442.1,4.09483641]
[1750940497405,0.204,2442.2,2442.0,4.09494469]
[1750940497729,0.7615,2442.1,2441.8,4.29922731]
[1750940498800,0.7615,2442.1,2441.8,4.09531702]
[1750940499001,0.204,2442.0,2441.8,4.09531702]
[1750940499229,0.204,2442.0,2441.6,4.29962779]
[1750940499230,0.204,2442.0,2441.7,4.09541941]
[1750940499434,0.204,2442.0,2441.6,0.204]
[1750940499941,0.204,2441.8,2441.5,4.09568183]
[1750940500337,0.204,2441.8,2441.4,0.005]
[1750940500637,0.7645,2441.7,2441.4,4.10094513]
[1750940500942,0.204,2441.6,2441.5,4.09575963]
[1750940501127,0.204,2441.6,2441.4,4.1009424]
[1750940501328,0.204,2441.6,2441.5,4.09584271]
[1750940501714,0.204,2441.6,2441.4,4.10091665]
[1750940502336,0.204,2441.6,2441.4,0.005]
[1750940502639,0.204,2441.6,2441.5,4.09584271]
[1750940503961,0.204,2441.6,2441.4,4.10092759]
[1750940504657,0.204,2441.6,2441.4,0.005]
[1750940505021,0.55,2441.6,2441.4,0.005]
[1750940506417,1.3796,2441.5,2441.4,0.005]
[1750940508667,13.1166,2441.5,2441.4,0.005]
[1750940508964,14.42826,2441.5,2441.4,0.005]
[1750940510985,21.11626,2441.5,2441.4,0.005]
[1750940511774,19.8036,2441.5,2441.4,0.005]
[1750940513588,18.0676,2441.5,2441.4,0.005]
[1750940516694,19.8036,2441.5,2441.4,0.005]
[1750940516862,19.8046,2441.5,2441.4,0.005]
[1750940517297,40.0,2441.4,2440.8,0.01]
[1750940517575,0.55,2441.0,2440.8,0.01]
[1750940517811,7.5156,2441.4,2440.8,0.01]
[1750940517967,10.0,2441.3,2440.8,0.7957]
[1750940518292,6.702,2441.3,2440.8,4.8926333]
[1750940518678,0.55,2441.2,2440.8,4.8926333]
[1750940519097,7.253,2441.3,2440.8,4.8926333]
[1750940519315,9.06076,2441.3,2440.8,0.01]
[1750940519797,0.55,2441.1,2440.8,0.01]
[1750940519995,0.2048,2440.9,2440.8,0.01]
[1750940520196,0.2048,2441.0,2440.9,4.09672327]
[1750940521462,11.9043641,2442.4,2440.9,4.09672327]
[1750940521463,0.7567,2441.7,2441.0,0.756]
[1750940521768,0.204,2441.5,2441.2,4.09624912]
[1750940521981,0.204,2441.5,2441.3,4.09617448]
[1750940522181,0.204,2441.5,2441.2,4.09627785]
[1750940522497,0.55,2441.6,2440.9,4.09684952]
[1750940522694,0.55,2441.1,2440.8,0.01]
[1750940523097,0.55,2441.1,2440.8,4.1068985]